[Event "7th Leer Open-B 2024"]
[Site "Leer"]
[Date "2024.10.31"]
[Round "1.4"]
[White "Lueders Vega, Iago Ernst"]
[Black "Witte, Volker"]
[Result "0-1"]
[ECO "B11"]
[WhiteElo "1578"]
[BlackElo "1803"]
[Annotator "NA RC"]
[PlyCount "134"]
[EventDate "2024.10.14"]
[EventType "swiss"]
[EventCountry "GER"]
[SourceTitle "playchess.com"]
[Source "ChessBase"]
[SourceQuality "1"]
[TimeControl "40/5400+30:900+30"]

1. e4 {[%emt 0:00:05]} c6 {[%emt 0:00:07]} 2. Nc3 {[%emt 0:00:03]} d5 {[%emt 0:00:09]} 3. Nf3 {[%emt 0:00:04]} dxe4 {[%emt 0:00:55]} 4. Nxe4 {[%emt 0:00:08]} Bf5 {[%emt 0:00:46]} 5. Ng3 {[%emt 0:00:17]} Bg6 {[%emt 0:00:15]} 6. h4 {[%emt 0:00:43]} h6 {[%emt 0:02:22]} 7. Ne5 {[%emt 0:00:10]} Bh7 {[%emt 0:01:52]} 8. Qh5 {[%emt 0:00:20]} g6 {[%emt 0:02:37]} 9. Bc4 {[%emt 0:00:06]} e6 {[%emt 0:01:07]} 10. Qf3 {[%emt 0:01:48] B11: Caro-Kann: Twee Paarden Variant.} Qf6 {[%emt 0:01:01]} 11. Qxf6 {[%emt 0:00:37]} Nxf6 {[%emt 0:00:08]} 12. d4 {[%emt 0:00:23]} Nbd7 {[%emt 0:04:30]} 13. Nxd7 {[%emt 0:00:53]} Nxd7 {[%emt 0:00:37]} 14. Bf4 {[%emt 0:01:15]} O-O-O {[%emt 0:03:29]} 15. O-O-O {[%emt 0:00:20]} Nb6 {[%emt 0:01:22]} 16. Be2 {[%emt 0:00:20]} Nd5 {[%emt 0:00:30]} 17. Bd2 {[%emt 0:00:28]} Bg7 {[%emt 0:00:42]} 18. c3 {[%emt 0:00:21]} e5 {[%emt 0:03:20]} 19. dxe5 {[%emt 0:00:33]} Bxe5 {[%emt 0:01:02]} 20. Bxh6 {[%emt 0:00:26]} Bf4+ {[%emt 0:00:21]} 21. Bxf4 {[%emt 0:00:35]} Nxf4 {[%emt 0:00:10]} 22. Bf3 {[%emt 0:01:23]} Nd3+ {[%emt 0:00:29]} 23. Kc2 {[%emt 0:00:21]} Nxf2 {[%emt 0:01:30]} 24. Rxd8+ {[%emt 0:00:07]} Rxd8 {[%emt 0:00:14]} 25. Rf1 {[%emt 0:00:03]} g5+ {[%emt 0:04:07]} 26. Kb3 {[%emt 0:00:33]} gxh4 {[%emt 0:01:19]} 27. Rxf2 {[%emt 0:00:13]} hxg3 {[%emt 0:00:06]} 28. Rf1 {[%emt 0:00:18]} f5 {[%emt 0:11:49]} 29. Re1 {[%emt 0:00:31]} Bg8+ {[%emt 0:00:43]} 30. Ka3 {[%emt 0:00:16]} Rf8 {[%emt 0:04:15]} 31. Re7 {[%emt 0:00:45]} f4 {[%emt 0:07:39]} 32. Bg4+ {[%emt 0:00:31]} Kb8 {[%emt 0:02:35]} 33. b3 {[%emt 0:00:51]} Bd5 {[%emt 0:00:58]} 34. Bh3 {[%emt 0:00:11]} c5 {[%emt 0:02:57]} 35. c4 {[%emt 0:00:23]} Bc6 {[%emt 0:00:06]} 36. Rg7 {[%emt 0:01:07]} b6 {[%emt 0:00:38]} 37. Rg4 {[%emt 0:00:42]} Bb7 {[%emt 0:00:55]} 38. Rg7 {[%emt 0:00:39]} Rh8 {[%emt 0:05:21]} 39. Rg6 {[%emt 0:02:44]} f3 {[%emt 0:13:18]} 40. Rd6 {[%emt 0:03:14]} f2 {[%emt 0:02:33]} 41. Rf6 {[%emt 0:15:11]} Rxh3 {[%emt 0:16:03]} 42. Rf8+ {[%emt 0:00:22]} Bc8 {[%emt 0:00:26]} 43. gxh3 {[%emt 0:00:13]} g2 {[%emt 0:00:13]} 44. Rxf2 {[%emt 0:00:22]} g1=Q {[%emt 0:00:14]} 45. Rf7 {[%emt 0:00:13]} Qc1+ {[%emt 0:01:09]} 46. Ka4 {[%emt 0:00:06]} Bxh3 {[%emt 0:00:57]} 47. a3 {[%emt 0:00:16]} Qc3 {[%emt 0:00:45]} 48. b4 {[%emt 0:00:38]} Qxc4 {[%emt 0:00:26]} 49. Rb7+ {[%emt 1:27:52]} Kc8 {[%emt 0:20:53]} 50. Rc7+ {[%emt 0:00:00]} Kd8 {[%emt 0:00:00]} 51. Rc8+ {[%emt 0:00:00]} Ke7 {[%emt 0:00:00]} 52. Re8+ {[%emt 0:00:00]} Kd6 {[%emt 0:00:00]} 53. Rd8+ {[%emt 0:00:00]} Ke5 {[%emt 0:00:00]} 54. Re8+ {[%emt 0:00:00]} Kd4 {[%emt 0:00:00]} 55. Re4+ {[%emt 0:00:00]} Kc3 {[%emt 0:00:00]} 56. Re3+ {[%emt 0:00:00]} Qd3 {[%emt 0:00:00]} 57. b5 {[%emt 0:00:00] [#]} Kd2 {[%emt 0:00:00]} 58. Rxd3+ {[%emt 0:00:00]} Kxd3 {[%emt 0:00:00]} 59. Kb3 {[%emt 0:00:00]} c4+ {[%emt 0:00:00]} 60. Ka4 {[%emt 0:00:00]} Kd2 {[%emt 0:00:00]} 61. Kb4 {[%emt 0:00:00]} c3 {[%emt 0:00:00]} 62. a4 {[%emt 0:00:00]} c2 {[%emt 0:00:00]} 63. a5 {[%emt 0:00:00]} c1=Q {[%emt 0:00:00]} 64. axb6 {[%emt 0:00:00]} axb6 {[%emt 0:00:00]} 65. Ka4 {[%emt 0:00:00]} Qb1 {[%emt 0:00:00]} 66. Ka3 {[%emt 0:00:00]} Kc3 {[%emt 0:00:00]} 67. Ka4 {[%emt 0:00:00]} Qb4# {[%emt 0:00:00]} 0-1

[Event "7th Leer Open-B 2024"]
[Site "Leer"]
[Date "2024.10.31"]
[Round "1.4"]
[White "Wilmink, Marion"]
[Black "Neumann, Hannes"]
[Result "1/2-1/2"]
[ECO "B45"]
[WhiteElo "1545"]
[BlackElo "1731"]
[Annotator "NA RC"]
[PlyCount "49"]
[EventDate "2024.10.14"]
[EventType "swiss"]
[EventCountry "GER"]
[SourceTitle "playchess.com"]
[Source "ChessBase"]
[SourceQuality "1"]
[TimeControl "40/5400+30:900+30"]

1. e4 {[%emt 0:00:05]} c5 {[%emt 0:00:08]} 2. Nf3 {[%emt 0:00:22]} e6 {[%emt 0:00:11]} 3. d4 {[%emt 0:02:55]} cxd4 {[%emt 0:00:09]} 4. Nxd4 {[%emt 0:00:42]} Nf6 {[%emt 0:00:11]} 5. Nc3 {[%emt 0:02:42]} Nc6 {[%emt 0:00:42]} 6. Nxc6 {[%emt 0:04:35]} bxc6 {[%emt 0:00:19]} 7. Bg5 {[%emt 0:01:42]} Qa5 {[%emt 0:05:22]} 8. Bxf6 {[%emt 0:02:00]} gxf6 {[%emt 0:00:09]} 9. a3 {[%emt 0:02:17]} Rg8 {[%emt 0:06:14]} 10. f4 {[%emt 0:11:32]} Qb6 {[%emt 0:05:14]} 11. Qc1 {[%emt 0:02:39]} Bh6 {[%emt 0:09:32]} 12. g3 {[%emt 0:08:07]} e5 {[%emt 0:06:27]} 13. Ne2 {[%emt 0:04:37]} Rb8 {[%emt 0:04:03]} 14. b4 {[%emt 0:00:25]} c5 {[%emt 0:03:59]} 15. Rb1 {[%emt 0:03:37]} a5 {[%emt 0:01:43]} 16. b5 {[%emt 0:01:38]} Bb7 {[%emt 0:00:41]} 17. Nc3 {[%emt 0:02:38]} Qd6 {[%emt 0:03:58]} 18. Qd1 {[%emt 0:02:54]} Qxd1+ {[%emt 0:00:26]} 19. Rxd1 {[%emt 0:44:33]} exf4 {[%emt 0:00:19]} 20. Bh3 {[%emt 0:00:00]} fxg3 {[%emt 0:04:25]} 21. Bxd7+ {[%emt 0:00:00]} Ke7 {[%emt 0:00:40]} 22. Bc6 {[%emt 0:00:00]} Bxc6 {[%emt 0:00:56]} 23. bxc6 {[%emt 0:00:00]} g2 {[%emt 0:02:05]} 24. Nd5+ {[%emt 0:00:00]} Kf8 {[%emt 0:01:36]} 25. Rg1 {[%emt 0:00:00]} 1/2-1/2

[Event "7th Leer Open-B 2024"]
[Site "Leer"]
[Date "2024.10.31"]
[Round "1.5"]
[White "Domschke, Stephan"]
[Black "Schlueter, Ulrike"]
[Result "1-0"]
[ECO "A45"]
[WhiteElo "1797"]
[BlackElo "1647"]
[Annotator "NA RC"]
[PlyCount "35"]
[EventDate "2024.10.14"]
[EventType "swiss"]
[EventCountry "GER"]
[SourceTitle "playchess.com"]
[Source "ChessBase"]
[SourceQuality "1"]
[TimeControl "40/5400+30:900+30"]

1. d4 {[%emt 0:00:04]} Nf6 {[%emt 0:00:04]} 2. Bf4 {[%emt 0:00:15]} g6 {[%emt 0:00:12]} 3. Nc3 {[%emt 0:00:20]} c6 {[%emt 0:00:43]} 4. Qd2 {[%emt 0:02:36]} d5 {[%emt 0:02:38]} 5. f3 {[%emt 0:04:15]} Bg7 {[%emt 0:04:36]} 6. Bh6 {[%emt 0:01:09]} O-O {[%emt 0:00:49]} 7. h4 {[%emt 0:01:27]} Qd6 {[%emt 0:03:50]} 8. O-O-O {[%emt 0:01:38]} Nbd7 {[%emt 0:05:35]} 9. g4 {[%emt 0:04:48]} Ne8 {[%emt 0:06:16]} 10. h5 {[%emt 0:02:37]} b5 {[%emt 0:07:13]} 11. hxg6 {[%emt 0:01:36]} Qxg6 {[%emt 0:07:07]} 12. Bxg7 {[%emt 0:06:28]} Qxg7 {[%emt 0:01:54]} 13. e4 {[%emt 0:02:46]} b4 {[%emt 0:03:14]} 14. Nb1 {[%emt 0:02:06]} a5 {[%emt 0:05:25]} 15. e5 {[%emt 0:00:45]} Nb6 {[%emt 0:03:28]} 16. b3 {[%emt 0:01:24]} Nc7 {[%emt 0:05:00]} 17. Bd3 {[%emt 0:02:38]} Rd8 {[%emt 0:06:29]} 18. Rxh7 {[%emt 0:01:20]} 1-0

[Event "7th Leer Open-B 2024"]
[Site "Leer"]
[Date "2024.10.31"]
[Round "1.5"]
[White "Aleanakian, Gabriel"]
[Black "Greiner, Jan Oluf"]
[Result "1/2-1/2"]
[ECO "D07"]
[WhiteElo "1721"]
[BlackElo "1539"]
[Annotator "NA RC"]
[PlyCount "84"]
[EventDate "2024.10.14"]
[EventType "swiss"]
[EventCountry "GER"]
[SourceTitle "playchess.com"]
[Source "ChessBase"]
[SourceQuality "1"]
[TimeControl "40/5400+30:900+30"]

1. Nf3 {[%emt 0:02:38]} d5 {[%emt 0:00:55]} 2. d4 {[%emt 0:00:09]} Nc6 {[%emt 0:00:09]} 3. c4 {[%emt 0:00:12]} Nf6 {[%emt 0:00:37]} 4. cxd5 {[%emt 0:00:15]} Nxd5 {[%emt 0:00:17]} 5. e4 {[%emt 0:00:08]} Nb6 {[%emt 0:04:08]} 6. Nc3 {[%emt 0:00:16]} Bg4 {[%emt 0:01:39]} 7. d5 {[%emt 0:01:54]} Ne5 {[%emt 0:00:10]} 8. Bb5+ {[%emt 0:01:00]} Ned7 {[%emt 0:13:24]} 9. O-O {[%emt 0:01:03]} a6 {[%emt 0:00:48]} 10. Be2 {[%emt 0:00:54]} g6 {[%emt 0:01:46]} 11. h3 {[%emt 0:00:58]} Bxf3 {[%emt 0:00:08]} 12. Bxf3 {[%emt 0:00:20]} Bg7 {[%emt 0:00:49]} 13. Rb1 {[%emt 0:00:54]} Ne5 {[%emt 0:02:05]} 14. Be2 {[%emt 0:01:58]} Qd6 {[%emt 0:08:13]} 15. Be3 {[%emt 0:05:28]} O-O {[%emt 0:04:19]} 16. Qc1 {[%emt 0:03:48]} e6 {[%emt 0:06:26]} 17. Rd1 {[%emt 0:03:50]} Rfd8 {[%emt 0:01:04]} 18. f4 {[%emt 0:07:02]} Nec4 {[%emt 0:05:39]} 19. Bf2 {[%emt 0:05:48]} Bh6 {[%emt 0:04:23]} 20. g3 {[%emt 0:01:20]} e5 {[%emt 0:00:17]} 21. Bxc4 {[%emt 0:01:15]} Nxc4 {[%emt 0:01:16]} 22. Ne2 {[%emt 0:00:09]} b5 {[%emt 0:04:48]} 23. b3 {[%emt 0:01:41]} Nb6 {[%emt 0:03:06]} 24. Be3 {[%emt 0:01:28]} exf4 {[%emt 0:01:20]} 25. Bxf4 {[%emt 0:01:10]} Bxf4 {[%emt 0:00:18]} 26. Qxf4 {[%emt 0:00:54]} Qxf4 {[%emt 0:01:23]} 27. gxf4 {[%emt 0:00:25]} Re8 {[%emt 0:02:12]} 28. Ng3 {[%emt 0:01:43]} h5 {[%emt 0:00:27]} 29. Rbc1 {[%emt 0:00:58]} h4 {[%emt 0:00:47]} 30. Nf1 {[%emt 0:00:37]} Rxe4 {[%emt 0:02:08]} 31. Rxc7 {[%emt 0:00:15]} Rd8 {[%emt 0:02:50]} 32. d6 {[%emt 0:00:24]} Kg7 {[%emt 0:02:31]} 33. Rc6 {[%emt 0:00:17]} Nd7 {[%emt 0:01:27]} 34. Rxa6 {[%emt 0:01:42]} Rxf4 {[%emt 0:00:22]} 35. Ne3 {[%emt 0:03:37]} Re4 {[%emt 0:02:33]} 36. Nd5 {[%emt 0:01:03]} Re5 {[%emt 0:11:59]} 37. Ne7 {[%emt 0:01:26]} Kf8 {[%emt 0:10:27]} 38. Nc6 {[%emt 0:01:09]} Rg5+ {[%emt 0:00:03]} 39. Kh2 {[%emt 0:00:43]} Re8 {[%emt 0:01:44]} 40. Rd2 {[%emt 0:03:05]} Nc5 {[%emt 0:00:39]} 41. Ra7 {[%emt 0:16:57]} Ne4 {[%emt 0:03:15]} 42. Rd4 {[%emt 0:00:00]} Nxd6 {[%emt 0:02:29]} 1/2-1/2

[Event "7th Leer Open-B 2024"]
[Site "Leer"]
[Date "2024.10.31"]
[Round "1.5"]
[White "Wilmink, Marion"]
[Black "Neumann, Hannes"]
[Result "*"]
[ECO "D07"]
[WhiteElo "1545"]
[BlackElo "1731"]
[Annotator "NA RC"]
[PlyCount "27"]
[EventDate "2024.10.14"]
[EventType "swiss"]
[EventCountry "GER"]
[SourceTitle "playchess.com"]
[Source "ChessBase"]
[SourceQuality "1"]
[TimeControl "40/5400+30:900+30"]

1. Nf3 {[%emt 0:02:38]} d5 {[%emt 0:00:55]} 2. d4 {[%emt 0:00:09]} Nc6 {[%emt 0:00:09]} 3. c4 {[%emt 0:00:12]} Nf6 {[%emt 0:00:37]} 4. cxd5 {[%emt 0:00:15]} Nxd5 {[%emt 0:00:17]} 5. e4 {[%emt 0:00:08]} Nb6 {[%emt 0:04:08]} 6. Nc3 {[%emt 0:00:16]} Bg4 {[%emt 0:01:39]} 7. d5 {[%emt 0:01:54]} Ne5 {[%emt 0:00:10]} 8. Bb5+ {[%emt 0:01:00]} Ned7 {[%emt 0:13:24]} 9. O-O {[%emt 0:01:03]} a6 {[%emt 0:00:48]} 10. Be2 {[%emt 0:00:54]} g6 {[%emt 0:01:46]} 11. h3 {[%emt 0:00:58]} Bxf3 {[%emt 0:00:08]} 12. Bxf3 {[%emt 0:00:20]} Bg7 {[%emt 0:00:49]} 13. Rb1 {[%emt 0:00:54]} Ne5 {[%emt 1:12:10]} 14. Be2 {[%emt 0:01:58]} *

[Event "7th Leer Open-B 2024"]
[Site "Leer"]
[Date "2024.10.31"]
[Round "1.6"]
[White "Demiroers, Emre"]
[Black "Kopylov, Diana"]
[Result "1-0"]
[ECO "C01"]
[WhiteElo "1614"]
[BlackElo "1787"]
[Annotator "NA RC"]
[PlyCount "109"]
[EventDate "2024.10.14"]
[EventType "swiss"]
[EventCountry "GER"]
[SourceTitle "playchess.com"]
[Source "ChessBase"]
[SourceQuality "1"]
[TimeControl "40/5400+30:900+30"]

1. e4 {[%emt 0:00:05]} e6 {[%emt 0:00:07]} 2. d4 {[%emt 0:00:08]} d5 {[%emt 0:00:06]} 3. exd5 {[%emt 0:00:12]} exd5 {[%emt 0:00:07]} 4. Bd3 {[%emt 0:00:08]} Bd6 {[%emt 0:00:22]} 5. Nc3 {[%emt 0:00:13]} Ne7 {[%emt 0:02:21]} 6. Nge2 {[%emt 0:02:08]} Nbc6 {[%emt 0:05:33]} 7. Nb5 {[%emt 0:03:41]} Bb4+ {[%emt 0:03:44]} 8. Bd2 {[%emt 0:01:48]} Bxd2+ {[%emt 0:01:49]} 9. Qxd2 {[%emt 0:00:37]} a6 {[%emt 0:04:18]} 10. Nbc3 {[%emt 0:07:02]} Nb4 {[%emt 0:04:11]} 11. Ng3 {[%emt 0:04:04]} Nxd3+ {[%emt 0:01:26]} 12. Qxd3 {[%emt 0:00:12]} Be6 {[%emt 0:01:31]} 13. Nce2 {[%emt 0:07:30]} Qd6 {[%emt 0:02:41]} 14. f4 {[%emt 0:07:24]} g6 {[%emt 0:08:13]} 15. O-O-O {[%emt 0:08:21]} h5 {[%emt 0:12:02]} 16. Rde1 {[%emt 0:04:16]} h4 {[%emt 0:07:59]} 17. Nf1 {[%emt 0:00:24]} Bf5 {[%emt 0:04:34]} 18. Qb3 {[%emt 0:01:57]} O-O-O {[%emt 0:03:05]} 19. Nd2 {[%emt 0:02:56]} Nc6 {[%emt 0:05:54]} 20. c3 {[%emt 0:03:52]} Rde8 {[%emt 0:06:04]} 21. Nf3 {[%emt 0:02:01]} f6 {[%emt 0:03:53]} 22. Qd1 {[%emt 0:05:12]} Be4 {[%emt 0:08:29]} 23. Rhf1 {[%emt 0:00:18]} Na5 {[%emt 0:01:13]} 24. g3 {[%emt 0:04:30]} Nc4 {[%emt 0:01:45]} 25. Neg1 {[%emt 0:00:29]} hxg3 {[%emt 0:04:21]} 26. hxg3 {[%emt 0:00:06]} Bf5 {[%emt 0:01:47]} 27. Rxe8+ {[%emt 0:04:19]} Rxe8 {[%emt 0:00:02]} 28. Re1 {[%emt 0:00:01]} Ne3 {[%emt 0:03:05]} 29. Qd2 {[%emt 0:00:45]} Qe7 {[%emt 0:00:18]} 30. Nh4 {[%emt 0:01:30]} Qe4 {[%emt 0:02:26]} 31. Nxf5 {[%emt 0:00:29]} gxf5 {[%emt 0:00:07]} 32. Nh3 {[%emt 0:02:42]} Kd7 {[%emt 0:00:50]} 33. Nf2 {[%emt 0:02:14]} Qf3 {[%emt 0:00:31]} 34. Qe2 {[%emt 0:03:41]} Qxg3 {[%emt 0:01:00]} 35. Nd1 {[%emt 0:00:29]} Qxf4 {[%emt 0:01:07]} 36. Nxe3 {[%emt 0:00:07]} Qe4 {[%emt 0:00:22]} 37. Qc2 {[%emt 0:00:26]} Qf3 {[%emt 0:00:54]} 38. Qg2 {[%emt 0:02:41]} Rxe3 {[%emt 0:00:33]} 39. Qg7+ {[%emt 0:00:35]} Ke6 {[%emt 0:00:15]} 40. Qg8+ {[%emt 0:00:16]} Kd6 {[%emt 0:00:37]} 41. Qd8+ {[%emt 0:15:44]} Kc6 {[%emt 0:01:42]} 42. Qxf6+ {[%emt 0:00:00]} Kb5 {[%emt 0:05:06]} 43. Rxe3 {[%emt 0:00:00]} Qxe3+ {[%emt 0:00:08]} 44. Kc2 {[%emt 0:00:00]} f4 {[%emt 0:01:36]} 45. Qf7 {[%emt 0:00:00]} Qe4+ {[%emt 0:01:48]} 46. Kb3 {[%emt 0:00:00]} Kc6 {[%emt 0:01:12]} 47. Qf6+ {[%emt 0:00:00]} Kd7 {[%emt 0:02:27]} 48. Qf7+ {[%emt 0:00:00]} Kd6 {[%emt 0:00:38]} 49. Qf6+ {[%emt 0:00:00]} Kd7 {[%emt 0:00:45]} 50. Qf7+ {[%emt 0:00:00]} Kc6 {[%emt 0:00:59]} 51. Qf6+ {[%emt 0:00:00]} Kb5 {[%emt 0:00:55]} 52. a4+ {[%emt 0:00:00]} Ka5 {[%emt 0:00:10]} 53. Ka3 {[%emt 0:00:00]} c6 {[%emt 0:00:42]} 54. Qd8+ {[%emt 0:00:00]} b6 {[%emt 0:00:18]} 55. b4# {[%emt 0:00:00]} 1-0

[Event "7th Leer Open-B 2024"]
[Site "Leer"]
[Date "2024.10.31"]
[Round "1.7"]
[White "Fuchs, Stefan"]
[Black "Schenk, Michael"]
[Result "1-0"]
[ECO "A22"]
[WhiteElo "2178"]
[BlackElo "1643"]
[Annotator "RC"]
[PlyCount "53"]
[EventDate "2024.10.14"]
[EventType "swiss"]
[EventCountry "GER"]
[SourceTitle "playchess.com"]
[Source "ChessBase"]
[SourceQuality "1"]
[TimeControl "40/5400+30:900+30"]

1. c4 {[%emt 0:00:30]} e5 {[%emt 0:00:14]} 2. Nc3 {[%emt 0:00:11]} Nf6 {[%emt 0:00:08]} 3. g3 {[%emt 0:00:10]} Bc5 {[%emt 0:01:15]} 4. Nf3 {[%emt 0:00:21]} d6 {[%emt 0:00:29]} 5. Bg2 {[%emt 0:01:14]} c6 {[%emt 0:01:11]} 6. O-O {[%emt 0:06:06]} O-O {[%emt 0:01:46]} 7. d3 {[%emt 0:08:00]} h6 {[%emt 0:03:24]} 8. e3 {[%emt 0:02:23]} Bg4 {[%emt 0:07:28]} 9. h3 {[%emt 0:06:55]} Be6 {[%emt 0:04:00]} 10. b3 {[%emt 0:05:11]} Qc8 {[%emt 0:12:38]} 11. Kh2 {[%emt 0:00:13]} Nbd7 {[%emt 0:05:37]} 12. d4 {[%emt 0:13:30]} Bb4 {[%emt 0:10:58]} 13. Bb2 {[%emt 0:04:16]} e4 {[%emt 0:07:05]} 14. Nd2 {[%emt 0:01:49]} d5 {[%emt 0:01:48]} 15. f3 {[%emt 0:06:19]} exf3 {[%emt 0:04:25]} 16. Qxf3 {[%emt 0:03:39]} Nh7 {[%emt 0:05:47]} 17. e4 {[%emt 0:14:48]} Ng5 {[%emt 0:05:27]} 18. Qf4 {[%emt 0:06:20]} dxe4 {[%emt 0:08:11]} 19. Ndxe4 {[%emt 0:01:52]} Bxc3 {[%emt 0:09:31]} 20. Bxc3 {[%emt 0:00:17]} Nxe4 {[%emt 0:00:36]} 21. Qxe4 {[%emt 0:00:45]} Nf6 {[%emt 0:00:37]} 22. Qh4 {[%emt 0:10:01]} Qd8 {[%emt 0:03:11]} 23. d5 {[%emt 0:03:34]} cxd5 {[%emt 0:00:43]} 24. Rxf6 {[%emt 0:00:42]} gxf6 {[%emt 0:01:31]} 25. Bxf6 {[%emt 0:00:05]} Qb6 {[%emt 0:03:05]} 26. Qxh6 {[%emt 0:00:11]} dxc4 {[%emt 0:00:41]} 27. Qg7# {[%emt 0:00:11]} 1-0

[Event "7th Leer Open-B 2024"]
[Site "Leer"]
[Date "2024.10.31"]
[Round "1.7"]
[White "Yildiz, Oemer"]
[Black "Krause, Volker"]
[Result "1-0"]
[ECO "D13"]
[WhiteElo "1720"]
[BlackElo "1517"]
[Annotator "NA RC"]
[PlyCount "55"]
[EventDate "2024.10.14"]
[EventType "swiss"]
[EventCountry "GER"]
[SourceTitle "playchess.com"]
[Source "ChessBase"]
[SourceQuality "1"]
[TimeControl "40/5400+30:900+30"]

1. c4 {[%emt 0:01:01]} c6 {[%emt 0:00:15]} 2. Nc3 {[%emt 0:00:13]} d5 {[%emt 0:00:10]} 3. cxd5 {[%emt 0:00:12]} cxd5 {[%emt 0:00:11]} 4. d4 {[%emt 0:00:28]} Nf6 {[%emt 0:00:26]} 5. Bg5 {[%emt 0:01:21]} Nc6 {[%emt 1:31:58]} 6. Nf3 {[%emt 0:00:11]} Bf5 {[%emt 0:00:00]} 7. e3 {[%emt 0:00:49]} e6 {[%emt 0:00:00]} 8. Bb5 {[%emt 0:00:35]} Be7 {[%emt 0:00:00]} 9. O-O {[%emt 0:02:41]} O-O {[%emt 0:00:00]} 10. a3 {[%emt 0:00:20]} a6 {[%emt 0:00:00]} 11. Bd3 {[%emt 0:00:26]} b5 {[%emt 0:00:00]} 12. Bxf5 {[%emt 0:00:20]} exf5 {[%emt 0:00:00]} 13. Rc1 {[%emt 0:01:41]} Qd7 {[%emt 0:00:00]} 14. Ne5 {[%emt 0:01:59]} Qd6 {[%emt 0:00:00]} 15. Nxb5 {[%emt 0:01:53]} axb5 {[%emt 0:00:00]} 16. Rxc6 {[%emt 0:00:08]} Qd8 {[%emt 0:00:00]} 17. Qb3 {[%emt 0:02:12]} h6 {[%emt 0:00:00]} 18. Bf4 {[%emt 0:03:08]} Nh5 {[%emt 0:00:00]} 19. Rfc1 {[%emt 0:00:45]} Nxf4 {[%emt 0:00:00]} 20. exf4 {[%emt 0:00:14]} f6 {[%emt 0:00:00]} 21. Ng6 {[%emt 0:02:25]} Re8 {[%emt 0:00:00]} 22. Re1 {[%emt 0:05:34]} Rb8 {[%emt 0:00:00]} 23. Rce6 {[%emt 0:01:02]} Rb7 {[%emt 0:00:00]} 24. Nxe7+ {[%emt 0:03:17]} Rexe7 {[%emt 0:00:00]} 25. Rxe7 {[%emt 0:00:19]} Rxe7 {[%emt 0:00:00]} 26. Rxe7 {[%emt 0:00:07]} Qxe7 {[%emt 0:00:00]} 27. Qxd5+ {[%emt 0:00:07]} Qf7 {[%emt 0:00:00]} 28. Qxb5 {[%emt 0:00:21]} 1-0

[Event "7th Leer Open-B 2024"]
[Site "Leer"]
[Date "2024.10.31"]
[Round "1.8"]
[White "Yildiz, Oemer"]
[Black "Krause, Volker"]
[Result "*"]
[ECO "B12"]
[WhiteElo "1720"]
[BlackElo "1517"]
[Annotator "NA RC"]
[PlyCount "31"]
[EventDate "2024.10.14"]
[EventType "swiss"]
[EventCountry "GER"]
[SourceTitle "playchess.com"]
[Source "ChessBase"]
[SourceQuality "1"]
[TimeControl "40/5400+30:900+30"]

1. e4 {[%emt 0:00:01]} c6 {[%emt 0:00:11]} 2. d4 {[%emt 0:00:07]} d5 {[%emt 0:00:06]} 3. f3 {[%emt 0:00:06]} dxe4 {[%emt 0:00:41]} 4. fxe4 {[%emt 0:00:03]} e5 {[%emt 0:00:11]} 5. Nf3 {[%emt 0:01:00]} Bg4 {[%emt 0:00:08]} 6. Be2 {[%emt 0:00:26]} Bxf3 {[%emt 0:03:07]} 7. Bxf3 {[%emt 0:02:59]} Qxd4 {[%emt 0:02:15]} 8. Qxd4 {[%emt 0:00:49]} exd4 {[%emt 0:00:09]} 9. O-O {[%emt 0:00:09]} Bc5 {[%emt 0:00:22]} 10. Kh1 {[%emt 0:00:36]} Nd7 {[%emt 0:01:28]} 11. Bf4 {[%emt 0:00:59]} O-O-O {[%emt 0:02:59]} 12. Nd2 {[%emt 0:01:22]} Be7 {[%emt 0:09:41]} 13. Rad1 {[%emt 0:04:34]} g5 {[%emt 0:00:46]} 14. Bg3 {[%emt 0:00:56]} h5 {[%emt 1:15:26]} 15. Bf2 {[%emt 0:01:15]} g4 {[%emt 1:15:38]} 16. Bxd4 {[%emt 0:02:05]} *

[Event "7th Leer Open-B 2024"]
[Site "Leer"]
[Date "2024.10.31"]
[Round "1.8"]
[White "Knorr, Frank"]
[Black "Schroeder, Harm"]
[Result "0-1"]
[ECO "A25"]
[WhiteElo "1641"]
[BlackElo "1781"]
[Annotator "NA RC"]
[PlyCount "64"]
[EventDate "2024.10.14"]
[EventType "swiss"]
[EventCountry "GER"]
[SourceTitle "playchess.com"]
[Source "ChessBase"]
[SourceQuality "1"]
[TimeControl "40/5400+30:900+30"]

1. c4 {[%emt 0:00:03]} e5 {[%emt 0:01:05]} 2. Nc3 {[%emt 0:00:07]} Nc6 {[%emt 0:00:56]} 3. g3 {[%emt 0:00:11]} Nf6 {[%emt 0:03:00]} 4. Bg2 {[%emt 0:00:09]} Be7 {[%emt 0:01:00]} 5. e4 {[%emt 0:00:23]} d6 {[%emt 0:01:02]} 6. Nge2 {[%emt 0:00:16]} Bg4 {[%emt 0:02:52]} 7. O-O {[%emt 0:00:40]} O-O {[%emt 1:24:05]} 8. h3 {[%emt 1:32:41]} Be6 {[%emt 0:00:00]} 9. d3 {[%emt 0:00:00]} Qc8 {[%emt 0:00:00]} 10. Kh2 {[%emt 0:00:00]} Nd7 {[%emt 0:00:00]} 11. Nd5 {[%emt 0:00:00]} f5 {[%emt 0:00:00]} 12. f4 {[%emt 0:00:00]} Bd8 {[%emt 0:00:00]} 13. exf5 {[%emt 0:00:00]} Bxf5 {[%emt 0:00:00]} 14. g4 {[%emt 0:00:00]} Be6 {[%emt 0:00:00]} 15. f5 {[%emt 0:00:00]} Bf7 {[%emt 0:00:00]} 16. Ng3 {[%emt 0:00:00]} Nd4 {[%emt 0:00:00]} 17. Ne4 {[%emt 0:00:00]} Bxd5 {[%emt 0:00:00]} 18. cxd5 {[%emt 0:00:00]} Nb6 {[%emt 0:00:00]} 19. Ng5 {[%emt 0:00:00]} Bxg5 {[%emt 0:00:00]} 20. Bxg5 {[%emt 0:00:00]} Nd7 {[%emt 0:00:00]} 21. Rc1 {[%emt 0:00:00]} h6 {[%emt 0:00:00]} 22. Be7 {[%emt 0:00:00]} Re8 {[%emt 0:00:00]} 23. Bxd6 {[%emt 0:00:00]} c6 {[%emt 0:00:00]} 24. dxc6 {[%emt 0:00:00]} bxc6 {[%emt 0:00:00]} 25. Bc5 {[%emt 0:00:00]} Nxc5 {[%emt 0:00:00]} 26. Rxc5 {[%emt 0:00:00]} Qa6 {[%emt 0:00:00]} 27. Re1 {[%emt 0:00:00]} Qxa2 {[%emt 0:00:00]} 28. Rxc6 {[%emt 0:00:00]} Rab8 {[%emt 0:00:00]} 29. Rc7 {[%emt 0:00:00]} Rxb2 {[%emt 0:00:00]} 30. Rg1 {[%emt 0:00:00]} Ne2 {[%emt 0:00:00]} 31. Rf1 {[%emt 0:00:00]} Nf4 {[%emt 0:00:00]} 32. Rxf4 {[%emt 0:00:00]} Rxg2+ {[%emt 0:00:00]} 0-1